bitfinex/quotes_SOLUSD_20220307
["timestamp","ask_amount","ask_price","bid_price","bid_amount"]
[1646615479265,1.61719967,83.117,83.061,6.017]
[1646615479564,1.61719967,83.12,83.062,23.8637]
[1646615479766,1.61719967,83.12,83.07,13.94]
[1646615479968,1.61719967,83.12,83.071,60.09684043]
[1646615480167,1.61719967,83.119,83.071,60.09684043]
[1646615480767,1.61719967,83.12,83.071,60.09684043]
[1646615481868,1.61719967,83.116,83.071,60.09684043]
[1646615482167,1.61719967,83.117,83.071,60.09684043]
[1646615482368,1.61719967,83.117,83.072,24.9683]
[1646615483072,1.61719967,83.117,83.072,30.9853]
[1646615483468,1.61719967,83.116,83.072,30.9853]
[1646615483868,1.61719967,83.11,83.072,30.9853]
[1646615484069,1.61719967,83.111,83.072,30.9853]
[1646615485471,1.61719967,83.11,83.072,30.9853]
[1646615485872,1.61719967,83.109,83.072,30.9853]
[1646615486071,1.61719967,83.11,83.072,30.9853]
[1646615486775,1.61719967,83.111,83.072,30.9853]
[1646615486972,1.61719967,83.112,83.072,30.9853]
[1646615487175,1.61719967,83.107,83.072,30.9853]
[1646615487372,1.61719967,83.106,83.072,30.9853]
[1646615487774,1.61719967,83.099,83.072,6.017]
[1646615487976,1.61719967,83.096,82.991,120.5]
[1646615488176,1.61719967,83.088,83.04,13.94]
[1646615488374,1.61719967,83.087,83.04,13.94]
[1646615488575,1.61719967,83.087,83.041,62.6648474]
[1646615488776,1.61719967,83.079,83.041,62.6648474]
[1646615488978,1.61719967,83.078,83.041,62.6648474]
[1646615489676,1.61719967,83.084,83.041,62.6648474]
[1646615489882,1.61719967,83.084,83.042,6.019]
[1646615490179,1.61719967,83.088,83.05,18.0594]
[1646615490476,1.61719967,83.091,83.051,6.019]
[1646615490678,1.61719967,83.093,83.051,6.019]
[1646615491476,1.61719967,83.092,83.051,6.019]
[1646615491875,1.61719967,83.091,83.051,6.019]
[1646615492376,1.61719967,83.087,83.05,13.94]
[1646615492776,1.61719967,83.083,83.05,13.94]
[1646615492977,1.61719967,83.077,83.05,13.94]
[1646615495079,1.61719967,83.076,83.05,13.94]
[1646615495278,1.61719967,83.077,83.05,13.94]
[1646615495478,1.61719967,83.077,83.043,24.6698]
[1646615495679,1.61719967,83.067,83.03,19.959]
[1646615495880,1.61719967,83.057,83.03,13.94]
[1646615496078,1.61719967,83.057,83.02,13.94]
[1646615496278,9.16,83.067,83.02,13.94]
[1646615496279,1.61719967,83.047,83.02,13.94]
[1646615496678,1.61719967,83.046,83.021,56.59241032]
[1646615497383,1.61719967,83.05,83.021,56.59241032]
[1646615498984,1.61719967,83.052,83.021,56.59241032]
[1646615499182,1.61719967,83.053,83.021,56.59241032]
[1646615499383,1.61719967,83.058,83.021,56.59241032]
[1646615499584,1.61719967,83.061,83.021,56.59241032]
[1646615499782,1.61719967,83.061,83.022,28.6918]
[1646615500182,1.61719967,83.063,83.022,28.6918]
[1646615500584,37.44858861,83.091,83.022,28.6918]
[1646615500585,1.61719967,83.064,83.022,28.6918]
[1646615500784,1.61719967,83.065,83.022,28.6918]
[1646615501985,1.61719967,83.064,83.022,28.6918]
[1646615502386,1.61719967,83.066,83.022,28.6918]
[1646615502586,1.61719967,83.066,83.022,22.6708]
[1646615503187,1.61719967,83.067,83.022,22.6708]
[1646615503986,1.61719967,83.066,83.022,22.6708]
[1646615504386,1.61719967,83.067,83.022,22.6708]
[1646615505888,1.61719967,83.068,83.022,22.6708]
[1646615506109,1.61719967,83.068,83.023,6.019]
[1646615506308,1.61719967,83.068,83.022,22.6708]
[1646615506309,1.61719967,83.068,83.022,28.6898]
[1646615506509,1.61719967,83.069,83.022,28.6898]
[1646615507510,1.61719967,83.068,83.022,28.6898]
[1646615508513,1.61719967,83.069,83.022,28.6898]
[1646615508812,1.61719967,83.07,83.022,28.6898]
[1646615509009,1.61719967,83.071,83.022,28.6898]
[1646615509512,1.61719967,83.07,83.022,28.6898]
[1646615510512,1.61719967,83.07,83.023,11.58435224]
[1646615511112,1.61719967,83.067,83.023,11.58435224]
[1646615511314,1.61719967,83.066,83.023,11.58435224]
[1646615511512,1.61719967,83.065,83.023,11.58435224]
[1646615513511,1.61719967,83.064,83.023,11.58435224]
[1646615514115,1.61719967,83.062,83.023,11.58435224]
[1646615514315,1.61719967,83.063,83.023,11.58435224]
[1646615515418,1.61719967,83.062,83.023,11.58435224]
[1646615516318,1.61719967,83.061,83.023,11.58435224]
[1646615517319,1.61719967,83.059,83.023,11.58435224]
[1646615518620,1.61719967,83.058,83.023,11.58435224]
[1646615519220,1.61719967,83.059,83.023,11.58435224]
[1646615521623,1.61719967,83.056,83.023,11.58435224]
[1646615524727,1.61719967,83.053,83.023,11.58435224]
[1646615525427,1.61719967,83.052,83.023,11.58435224]
[1646615525828,1.61719967,83.04,83.022,11.58435224]
[1646615526230,1.61719967,83.039,83.022,11.58435224]
[1646615526429,1.61719967,83.038,83.022,11.58435224]
[1646615526630,1.61719967,83.039,83.022,11.58435224]
[1646615526829,1.61719967,83.038,83.022,11.58435224]
[1646615527029,1.61719967,83.039,83.022,11.58435224]
[1646615527230,1.61719967,83.04,83.022,11.58435224]
[1646615527429,1.61719967,83.039,83.022,11.58435224]
[1646615528131,1.61719967,83.037,83.022,11.58435224]
[1646615528531,1.61719967,83.038,83.022,11.58435224]
[1646615529330,1.61719967,83.041,83.022,11.58435224]
[1646615529531,1.61719967,83.047,83.022,11.58435224]
[1646615529932,1.61719967,83.046,83.022,11.58435224]
[1646615530133,1.61719967,83.052,83.022,11.58435224]
[1646615530332,1.61719967,83.055,83.022,34.16475224]
[1646615530534,1.61719967,83.053,83.022,34.16475224]
[1646615531734,1.61719967,83.054,83.022,34.16475224]
[1646615532133,1.61719967,83.053,83.022,34.16475224]
[1646615533334,1.61719967,83.056,83.022,34.16475224]
[1646615533933,1.61719967,83.057,83.022,34.16475224]
[1646615534336,1.61719967,83.056,83.022,34.16475224]
[1646615534535,1.61719967,83.057,83.022,34.16475224]
[1646615535235,1.61719967,83.056,83.022,34.16475224]
[1646615537941,1.61719967,83.056,83.022,11.58435224]
[1646615538340,1.61719967,83.056,82.95,174.31]
[1646615538341,1.61719967,83.04,83.021,11.58435224]
[1646615538540,1.61719967,83.035,83.021,11.58435224]
[1646615538739,1.61719967,83.031,83.021,11.58435224]
[1646615539040,2.31727177,83.03,83.021,11.58435224]
[1646615539239,0.7000721,83.03,83.021,11.58435224]
[1646615540064,2.31727177,83.03,83.021,11.58435224]
[1646615540564,1.61719967,83.031,83.021,11.58435224]
[1646615541265,1.61719967,83.033,82.99,11.58435224]
[1646615541666,1.61719967,83.034,82.99,11.58435224]
[1646615542071,1.61719967,83.034,82.99,25.52435224]
[1646615542265,1.61719967,83.041,82.99,43.59625224]
[1646615542466,1.61719967,83.046,82.99,43.59625224]
[1646615543266,1.61719967,83.047,82.99,43.59625224]
[1646615543870,1.61719967,83.046,82.99,25.52435224]
[1646615544068,1.61719967,83.043,82.99,25.52435224]
[1646615544269,1.61719967,83.042,82.99,25.52435224]
[1646615544469,1.61719967,83.039,82.99,25.52435224]
[1646615544772,1.61719967,83.037,82.99,25.52435224]
[1646615544970,1.61719967,83.033,82.99,25.52435224]
[1646615545771,1.61719967,83.034,82.99,25.52435224]
[1646615546171,1.61719967,83.033,82.99,25.52435224]
[1646615546369,134.12025131,83.043,82.99,25.52435224]
[1646615546370,1.61719967,83.034,82.99,25.52435224]
[1646615547169,1.61719967,83.035,82.99,25.52435224]
[1646615547773,1.61719967,83.034,82.99,25.52435224]
[1646615548672,1.61719967,83.035,82.99,25.52435224]
[1646615551674,1.61719967,83.034,82.99,25.52435224]
[1646615553276,1.61719967,83.035,82.99,25.52435224]
[1646615553877,1.61719967,83.037,82.99,25.52435224]
[1646615554078,1.61719967,83.038,82.99,25.52435224]
[1646615554277,1.61719967,83.04,82.99,25.52435224]
[1646615554480,1.61719967,83.047,82.99,25.52435224]
[1646615555281,1.61719967,83.046,82.99,43.59655224]
[1646615555978,1.61719967,83.047,82.99,43.59655224]
[1646615556379,1.61719967,83.047,82.99,25.52435224]
[1646615556680,1.61719967,83.044,82.99,25.52435224]
[1646615558179,1.61719967,83.033,82.99,11.58435224]
[1646615558378,120.5,83.031,82.99,11.58435224]
[1646615558579,1.61719967,83.022,82.982,11.58435224]
[1646615558981,120.5,83.019,82.982,11.58435224]
[1646615561383,43.58892125,83.02,82.982,11.58435224]
[1646615561581,43.58892125,83.02,82.966,59.92033668]
[1646615562283,120.5,83.019,82.966,59.92033668]
[1646615562485,120.5,83.019,82.967,6.024]
[1646615563386,43.58892125,83.02,82.967,6.024]
[1646615564088,1.61719967,83.019,82.967,6.024]
[1646615564689,1.61719967,83.019,82.968,11.58435224]
[1646615565188,1.61719967,83.018,82.968,11.58435224]
[1646615565588,120.5,83.016,82.968,11.58435224]
[1646615565790,5.88098466,83.013,82.968,11.58435224]
[1646615565990,11.90498466,83.013,82.968,11.58435224]
[1646615566189,6.024,83.016,82.968,11.58435224]
[1646615566789,6.024,83.017,82.968,11.58435224]
[1646615566993,7.64119967,83.017,82.968,11.58435224]
[1646615567191,6.024,83.017,82.968,11.58435224]
[1646615567393,1.61719967,83.021,82.969,48.79609696]
[1646615567590,1.61719967,83.02,82.97,13.94]
[1646615567791,1.61719967,83.022,82.97,13.94]
[1646615568192,1.61719967,83.022,82.971,29.0526]
[1646615569194,1.61719967,83.023,82.971,29.0526]
[1646615569396,1.61719967,83.022,82.971,29.0526]
[1646615569595,1.61719967,83.023,82.972,11.58435224]
[1646615569795,1.61719967,83.023,82.973,6.024]
[1646615570396,1.61719967,83.023,82.972,11.58435224]
[1646615570595,1.61719967,83.016,82.972,11.58435224]
[1646615570796,11.37719967,83.016,82.972,11.58435224]
[1646615570999,122.11719967,83.015,82.972,11.58435224]
[1646615571198,1.61719967,83.002,82.972,11.58435224]
[1646615571402,1.61719967,82.996,82.972,11.58435224]
[1646615571602,4.07966777,82.994,82.972,11.58435224]
[1646615571802,40.0,82.993,82.931,6.025]
[1646615571999,1.61719967,82.982,82.925,50.98338042]
[1646615572199,1.61719967,82.98,82.926,6.027]
[1646615572409,5.60240446,82.977,82.925,50.98338042]
[1646615572603,120.5,82.969,82.925,50.98338042]
[1646615572803,120.5,82.969,82.925,49.98338042]
[1646615573004,120.5,82.969,82.912,6.027]
[1646615573205,120.5,82.969,82.911,24.152]
[1646615573618,120.5,82.975,82.911,24.152]
[1646615573816,120.5,82.973,82.911,24.152]
[1646615574016,120.5,82.971,82.912,64.06823181]
[1646615574617,6.027,82.97,82.912,64.06823181]
[1646615574923,1.72202858,103.47,82.912,64.06823181]
[1646615574924,6.027,82.976,82.912,64.06823181]
[1646615575117,6.027,82.977,82.912,64.06823181]
[1646615575317,6.027,82.978,82.912,64.06823181]
[1646615575518,6.027,82.982,82.912,64.06823181]
[1646615576119,120.5,82.981,82.912,64.06823181]
[1646615576317,120.5,82.979,82.912,64.06823181]
[1646615576519,120.5,82.977,82.912,64.06823181]
[1646615576717,120.5,82.975,82.912,64.06823181]
[1646615576919,1.61719967,82.985,82.913,6.027]
[1646615577118,6.027,82.997,82.913,6.027]
[1646615577119,1.61719967,82.996,82.913,6.027]
[1646615577322,1.61719967,83.001,82.913,31.0621892]
[1646615577518,1.61719967,83.001,82.914,25.0351892]
[1646615577718,1.61719967,83.001,82.915,6.027]
[1646615577918,1.61719967,83.002,82.93,13.94]
[1646615578120,120.5,83.011,82.931,29.1754]
[1646615578121,6.026,83.001,82.931,29.1754]
[1646615578320,120.5,83.004,82.931,23.1494]
[1646615578520,126.526,83.003,82.931,23.1494]
[1646615578920,126.526,83.003,82.932,50.67044678]
[1646615579120,120.5,83.003,82.933,6.026]
[1646615579621,1.61719967,83.007,82.933,6.026]
[1646615580322,1.61719967,83.007,82.932,50.67044678]
[1646615580724,120.5,83.005,82.932,50.67044678]
[1646615580924,120.5,83.003,82.932,50.67044678]
[1646615581123,6.026,83.002,82.932,50.67044678]
[1646615581329,6.026,83.002,82.933,6.026]
[1646615583325,120.5,83.003,82.933,6.026]
[1646615583524,6.026,83.002,82.933,4.526]
[1646615584028,6.026,83.006,82.933,4.526]
[1646615584226,1.61719967,83.01,82.933,4.526]
[1646615584424,1.61719967,83.011,82.933,4.526]
[1646615584625,152.36557833,83.013,82.933,4.526]
[1646615584825,150.74837866,83.013,82.933,4.526]
[1646615585025,158.39157833,83.013,82.933,4.526]
[1646615585226,150.74837866,83.013,82.94,18.0835]
[1646615585427,30.6538,83.012,82.941,6.025]
[1646615585626,1.49934225,83.011,82.941,6.025]
[1646615585926,6.025,83.01,82.941,6.025]
[1646615586125,6.025,83.01,82.942,24.5785]
[1646615586326,6.025,83.011,82.942,24.5785]
[1646615586528,6.29563584,83.009,82.942,24.5785]
[1646615586727,6.025,83.008,82.942,24.5785]
[1646615588629,24.6288,83.012,82.95,18.081]
[1646615588832,1.61719967,83.016,82.96,13.94]
[1646615589134,6.024,83.015,82.961,23.2604]
[1646615589330,6.024,83.017,82.962,49.67334543]
[1646615589729,1.61719967,83.02,82.962,49.67334543]
[1646615590131,1.61719967,83.021,82.962,49.67334543]
[1646615590531,1.61719967,83.02,82.962,49.67334543]
[1646615590831,1.61719967,83.023,82.962,49.67334543]
[1646615591029,6.024,83.022,82.962,49.67334543]
[1646615591230,6.024,83.023,82.962,49.67334543]
[1646615591429,1.61719967,83.024,82.962,49.67334543]
[1646615592632,1.61719967,83.028,82.962,49.67334543]
[1646615592832,1.61719967,83.03,82.963,22.984]
[1646615593032,1.61719967,83.032,82.963,22.984]
[1646615593233,1.61719967,83.033,82.963,22.984]
[1646615593433,1.61719967,83.033,82.97,18.0768]
[1646615593632,1.61719967,83.036,82.98,13.94]
[1646615594032,1.61719967,83.038,82.98,13.94]
[1646615594237,1.61719967,83.039,82.98,20.27]
[1646615594432,1.61719967,83.052,82.981,23.3621]
[1646615594632,1.61719967,83.056,83.0,18.0698]
[1646615594832,1.61719967,83.058,83.001,23.3621]
[1646615595032,1.61719967,83.057,83.001,23.3621]
[1646615595236,1.61719967,83.058,83.001,23.3621]
[1646615595434,1.61719967,83.059,83.001,23.3621]
[1646615595734,1.61719967,83.058,83.002,49.89652845]
[1646615596334,1.61719967,83.059,83.002,49.89652845]
[1646615596534,2.95831688,83.06,83.002,49.89652845]
[1646615597034,1.61719967,83.059,83.002,49.89652845]
[1646615597237,1.61719967,83.057,83.002,49.89652845]
[1646615597535,1.61719967,83.055,83.002,49.89652845]
[1646615597734,1.61719967,83.054,83.002,49.89652845]
[1646615598135,1.61719967,83.053,83.002,49.89652845]
[1646615598534,6.022,83.052,83.002,49.89652845]
[1646615598735,6.022,83.053,83.002,49.89652845]
[1646615599136,6.022,83.055,83.002,49.89652845]
[1646615600337,6.022,83.057,83.002,49.89652845]
[1646615600836,6.021,83.064,83.002,49.89652845]
[1646615601238,23.0156,83.067,83.002,49.89652845]
[1646615601636,6.021,83.066,83.002,49.89652845]
[1646615604839,23.0156,83.067,83.002,49.89652845]
[1646615605339,24.63279967,83.067,83.002,49.89652845]
[1646615605739,1.61719967,83.066,83.002,49.89652845]
[1646615607440,1.61719967,83.065,83.002,49.89652845]
[1646615608439,7.63819967,83.066,83.002,49.89652845]
[1646615609042,1.61719967,83.065,83.002,49.89652845]
[1646615609540,1.61719967,83.064,83.002,49.89652845]
[1646615610541,1.61719967,83.062,83.002,49.89652845]
[1646615610742,6.021,83.061,83.002,49.89652845]
[1646615611244,7.63819967,83.061,83.002,49.89652845]
[1646615611646,1.61719967,83.061,83.002,49.89652845]
[1646615611846,1.61719967,83.06,83.002,49.89652845]
[1646615612049,1.61719967,83.06,83.003,11.59044663]
[1646615612349,1.61719967,83.059,83.003,11.59044663]
[1646615612547,1.61719967,83.06,83.003,11.59044663]
[1646615613048,6.021,83.059,83.003,11.59044663]
[1646615613246,7.63819967,83.059,83.003,11.59044663]
[1646615613446,4.94219941,83.065,83.003,11.59044663]
[1646615613447,1.61719967,83.056,83.003,11.59044663]
[1646615614449,1.61719967,83.055,83.003,11.59044663]
[1646615615050,1.61719967,83.056,83.003,11.59044663]
[1646615615452,1.61719967,83.055,83.003,11.59044663]
[1646615616251,1.61719967,83.057,83.003,11.59044663]
[1646615616451,1.61719967,83.072,83.004,29.6353]
[1646615616649,1.61719967,83.078,83.004,29.6353]
[1646615616849,6.021,83.101,83.004,29.6353]
[1646615616850,1.61719967,83.08,83.005,39.14764449]
[1646615617052,1.61719967,83.08,83.006,6.021]
[1646615617251,1.61719967,83.081,83.021,55.89348697]
[1646615617454,1.61719967,83.081,83.022,30.2384]
[1646615617651,24.5707,83.101,83.022,30.2384]
[1646615617652,1.61719967,83.082,83.022,30.2384]
[1646615618252,1.61719967,83.08,83.022,30.2384]
[1646615619560,1.61719967,83.079,83.022,30.2384]
[1646615619752,1.61719967,83.079,83.022,48.213]
[1646615619956,1.61719967,83.08,83.03,18.0628]
[1646615620155,1.61719967,83.08,83.031,6.019]
[1646615620356,1.61719967,83.081,83.031,6.019]
[1646615620754,1.61719967,83.081,83.032,24.465]
[1646615620954,1.61719967,83.081,83.033,6.019]
[1646615621159,1.61719967,83.081,83.034,56.89259402]
[1646615621356,1.61719967,83.081,83.035,6.019]
[1646615622675,1.61719967,83.078,83.035,6.019]
[1646615623275,1.61719967,83.078,83.036,11.59044663]
[1646615623475,1.61719967,83.08,83.037,6.019]
[1646615623676,1.61719967,83.082,83.04,13.94]
[1646615624175,1.61719967,83.083,83.04,13.94]
[1646615624674,24.5707,83.101,83.041,6.019]
[1646615624675,1.61719967,83.085,83.041,6.019]
[1646615624876,1.61719967,83.083,83.041,6.019]
[1646615625275,1.61719967,83.085,83.041,6.019]
[1646615625476,1.61719967,83.087,83.042,24.7816]
[1646615625676,1.61719967,83.087,83.043,6.019]
[1646615625876,1.61719967,83.084,83.043,6.019]
[1646615626077,1.61719967,83.086,83.043,17.60944663]
[1646615626476,1.61719967,83.082,83.043,17.60944663]
[1646615626677,1.61719967,83.078,83.043,17.60944663]
[1646615626877,1.61719967,83.076,83.043,17.60944663]
[1646615627178,34.67582869,83.08,83.043,11.59044663]
[1646615627179,1.61719967,83.073,83.043,11.59044663]
[1646615627377,1.61719967,83.068,83.043,11.59044663]
[1646615627579,1.61719967,83.065,83.043,11.59044663]
[1646615627977,8.79719967,83.065,83.043,11.59044663]
[1646615628476,1.61719967,83.064,83.043,11.59044663]
[1646615629076,34.67582869,83.08,83.03,54.24628977]
[1646615629077,1.61719967,83.063,83.031,11.59044663]
[1646615629477,1.61719967,83.062,83.031,11.59044663]
[1646615629877,1.61719967,83.059,83.031,11.59044663]
[1646615630680,1.61719967,83.06,83.031,11.59044663]
[1646615630979,1.61719967,83.06,83.031,62.57897046]
[1646615631579,1.61719967,83.059,83.031,62.57897046]
[1646615632181,1.61719967,83.063,83.031,62.57897046]
[1646615632379,1.61719967,83.067,83.031,62.57897046]
[1646615633381,1.61719967,83.066,83.031,62.57897046]
[1646615633982,1.61719967,83.067,83.031,62.57897046]
[1646615635382,1.61719967,83.069,83.031,62.57897046]
[1646615635583,1.61719967,83.07,83.031,62.57897046]
[1646615635783,1.61719967,83.069,83.031,62.57897046]
[1646615636182,1.61719967,83.066,83.031,62.57897046]
[1646615636382,1.61719967,83.065,83.031,62.57897046]
[1646615636583,144.2033,83.085,83.031,62.57897046]
[1646615636584,1.61719967,83.064,83.031,62.57897046]
[1646615637791,1.61719967,83.065,83.031,62.57897046]
[1646615637989,1.61719967,83.064,83.031,62.57897046]
[1646615638288,1.61719967,83.065,83.031,62.57897046]
[1646615639292,1.61719967,83.064,83.031,11.59044663]
[1646615639489,1.61719967,83.063,83.031,11.59044663]
[1646615639889,1.61719967,83.062,83.031,11.59044663]
[1646615640090,1.61719967,83.062,83.013,11.59044663]
[1646615640296,1.61719967,83.061,83.013,11.59044663]
[1646615640895,1.61719967,83.061,83.014,60.96081851]
[1646615642098,1.61719967,83.06,83.014,60.96081851]
[1646615642494,1.61719967,83.059,83.014,60.96081851]
[1646615643496,1.61719967,83.059,83.015,11.59044663]
[1646615644498,1.61719967,83.058,83.015,11.59044663]
[1646615644697,1.61719967,83.05,83.015,11.59044663]
[1646615644897,1.61719967,83.039,83.015,11.59044663]
[1646615645102,1.61719967,83.028,83.015,11.59044663]
[1646615645303,1.61719967,83.023,83.015,11.59044663]
[1646615645500,4.18058892,83.037,83.015,11.59044663]
[1646615645501,1.61719967,83.021,83.015,11.59044663]
[1646615645699,0.7000721,83.02,83.015,11.59044663]
[1646615646000,1.61719967,83.017,83.015,11.59044663]
[1646615646400,0.7000721,83.02,83.015,11.59044663]
[1646615646800,0.7000721,83.02,82.974,11.59044663]
[1646615660817,6.024,83.019,82.974,11.59044663]
[1646615661218,0.7000721,83.02,82.974,11.59044663]
[1646615662918,120.5,83.018,82.974,11.59044663]
[1646615664234,6.97078569,83.017,82.974,11.59044663]
[1646615664434,120.5,83.016,82.974,11.59044663]
[1646615664634,128.56,83.016,82.974,11.59044663]
[1646615664835,1.61719967,83.009,82.974,11.59044663]
[1646615665034,1.61719967,83.005,82.941,11.59044663]
[1646615665234,1.61719967,83.002,82.941,11.59044663]
[1646615665435,5.3990866,82.999,82.941,11.59044663]
[1646615665634,1.61719967,82.997,82.941,11.59044663]
[1646615666138,2.82094536,82.996,82.941,11.59044663]
[1646615666336,1.61719967,82.993,82.941,11.59044663]
[1646615666737,5.01916337,82.99,82.941,11.59044663]
[1646615666935,120.5,82.988,82.941,11.59044663]
[1646615667135,120.5,82.986,82.941,11.59044663]
[1646615667335,120.5,82.984,82.941,11.59044663]
[1646615667536,120.5,82.982,82.941,11.59044663]
[1646615668336,130.28,82.982,82.941,11.59044663]
[1646615668535,120.5,82.98,82.912,11.59044663]
[1646615668738,120.5,82.978,82.912,11.59044663]
[1646615669337,120.5,82.978,82.913,58.29332356]
[1646615669738,120.5,82.977,82.913,58.29332356]
[1646615670941,6.027,82.98,82.913,58.29332356]
[1646615671347,22.8616,82.981,82.913,58.29332356]
[1646615671542,22.8616,82.981,82.914,11.59044663]
[1646615672643,22.8616,82.981,82.92,18.0879]
[1646615672844,22.8616,82.981,82.92,32.0279]
[1646615673045,22.8616,82.981,82.921,22.7239]
[1646615674047,6.027,82.98,82.921,22.7239]
[1646615674648,6.027,82.98,82.922,11.59044663]
[1646615674848,120.5,82.979,82.922,11.59044663]
[1646615675051,120.5,82.977,82.922,11.59044663]
[1646615675252,6.027,82.976,82.922,11.59044663]
[1646615675750,22.8616,82.981,82.922,11.59044663]
[1646615677358,120.5,82.98,82.922,11.59044663]
[1646615677558,22.8616,82.981,82.922,11.59044663]
[1646615678964,6.027,82.98,82.922,11.59044663]
[1646615679162,22.8616,82.981,82.922,11.59044663]
[1646615679961,1.61719967,82.992,82.922,11.59044663]
[1646615680163,1.61719967,82.998,82.922,11.59044663]
[1646615680363,6.027,83.008,82.922,11.59044663]
[1646615680364,1.61719967,83.008,82.923,120.5]
[1646615680565,6.026,83.007,82.923,120.5]
[1646615680762,4.34395128,83.043,82.923,120.5]
[1646615680763,6.026,83.015,82.924,132.09044663]
[1646615680963,6.026,83.016,82.924,164.91385022]
[1646615681264,6.026,83.017,82.93,18.0852]
[1646615681467,50.37608302,83.038,82.94,13.94]
[1646615681468,1.61719967,83.019,82.94,13.94]
[1646615681662,1.61719967,83.019,82.941,47.0295]
[1646615681865,6.025,83.018,82.941,47.0295]
[1646615682063,1.61719967,83.019,82.941,47.0295]
[1646615682383,1.61719967,83.018,82.941,47.0295]
[1646615682564,1.61719967,83.017,82.941,47.0295]
[1646615683568,1.61719967,83.017,82.941,65.2346]
[1646615683765,1.61719967,83.017,82.942,11.59044663]
[1646615684265,1.61719967,83.016,82.942,11.59044663]
[1646615685966,1.61719967,83.013,82.942,11.59044663]
[1646615686368,1.61719967,83.011,82.942,11.59044663]
[1646615686571,6.025,83.01,82.942,11.59044663]
[1646615687168,6.025,83.011,82.942,11.59044663]
[1646615687769,6.025,83.011,82.95,18.0812]
[1646615687968,1.61719967,83.012,82.951,24.6682]
[1646615688169,6.025,83.029,82.951,24.6682]
[1646615688170,1.61719967,83.013,82.951,24.6682]
[1646615688371,1.61719967,83.011,82.951,36.25864663]
[1646615688972,1.61719967,83.012,82.952,55.66832264]
[1646615689571,1.61719967,83.015,82.952,55.66832264]
[1646615690273,1.61719967,83.013,82.952,55.66832264]
[1646615690672,1.61719967,83.014,82.96,18.079]
[1646615690875,1.61719967,83.014,82.961,23.344]
[1646615691075,1.61719967,83.021,82.961,23.344]
[1646615691274,1.61719967,83.026,82.961,23.344]
[1646615691475,1.61719967,83.031,82.962,12.13461511]
[1646615691676,1.61719967,83.032,82.962,11.59044663]
[1646615691873,23.13006176,83.063,82.962,11.59044663]
[1646615691874,1.61719967,83.033,82.97,18.0753]
[1646615692075,1.61719967,83.03,82.972,59.34693325]
[1646615692274,1.61719967,83.031,82.972,59.34693325]
[1646615693074,1.61719967,83.033,82.972,59.34693325]
[1646615693275,1.61719967,83.032,82.972,59.34693325]
[1646615693878,6.54230198,83.05,82.972,59.34693325]
[1646615693879,1.61719967,83.031,82.972,59.34693325]
[1646615694279,1.61719967,83.032,82.972,59.34693325]
[1646615694476,1.61719967,83.034,82.972,59.34693325]
[1646615694877,1.61719967,83.036,82.973,11.59044663]
[1646615695076,1.61719967,83.037,82.973,11.59044663]
[1646615696379,1.61719967,83.039,82.973,11.59044663]
[1646615698105,1.61719967,83.042,82.98,18.074]
[1646615698304,1.61719967,83.042,82.99,13.94]
[1646615698602,1.61719967,83.05,82.991,23.0265]
[1646615698804,1.61719967,83.051,82.991,23.0265]
[1646615699003,1.61719967,83.051,82.992,58.13600976]
[1646615699202,1.61719967,83.056,82.992,58.13600976]
[1646615699704,1.61719967,83.056,83.0,18.0684]
[1646615699903,1.61719967,83.057,83.001,23.0265]
[1646615700304,1.61719967,83.056,83.001,23.0265]
[1646615701104,1.61719967,83.055,83.001,23.0265]
[1646615701604,1.61719967,83.057,83.001,23.0265]
[1646615701804,1.61719967,83.057,83.002,11.59044663]
[1646615702704,1.61719967,83.056,83.002,11.59044663]
[1646615703504,1.61719967,83.055,83.002,11.59044663]
[1646615704105,1.61719967,83.056,83.002,11.59044663]
[1646615704305,1.61719967,83.057,83.002,11.59044663]
[1646615704508,1.61719967,83.058,83.002,11.59044663]
[1646615704709,1.61719967,83.061,83.002,11.59044663]
[1646615704910,1.61719967,83.064,83.002,11.59044663]
[1646615705108,112.95377174,83.169,83.002,11.59044663]
[1646615705109,1.61719967,83.07,83.002,11.59044663]
[1646615705308,1.61719967,83.072,83.003,23.3771]
[1646615705810,1.61719967,83.07,83.003,23.3771]
[1646615706010,1.61719967,83.07,83.01,18.068]
[1646615706210,1.61719967,83.071,83.011,48.37285534]
[1646615706411,1.61719967,83.071,83.011,72.93555534]
[1646615707614,1.61719967,83.071,83.02,18.0657]
[1646615707813,1.61719967,83.076,83.02,32.0057]